[Event "*** SCC Grand Prix: Titled Tuesday Blitz"]
[Site "Chess.com"]
[Date "2020.08.11"]
[Round "8"]
[White "redbaron8888"]
[Black "pirulillo"]
[Result "1-0"]
[WhiteElo "2405"]
[BlackElo "2227"]
[TimeControl "180+1"]
[EndTime "11:37:48 PDT"]
[Termination "redbaron8888 won by resignation"]

1. e4 {[%clk 0:03:00.9]} 1... c5 {[%clk 0:02:58.2]} 2. Nf3 {[%clk 0:03:00.3]}
2... e6 {[%clk 0:02:54.2]} 3. Qe2 {[%clk 0:02:59.7]} 3... Nc6 {[%clk 0:02:53.3]}
4. g3 {[%clk 0:03:00]} 4... g6 {[%clk 0:02:52.2]} 5. Bg2 {[%clk 0:03:00.3]} 5...
Bg7 {[%clk 0:02:53.1]} 6. O-O {[%clk 0:03:00.2]} 6... Nge7 {[%clk 0:02:53.7]} 7.
c3 {[%clk 0:03:00.1]} 7... O-O {[%clk 0:02:50.7]} 8. Na3 {[%clk 0:02:52]} 8...
d5 {[%clk 0:02:41.1]} 9. d3 {[%clk 0:02:50.9]} 9... a6 {[%clk 0:02:39.7]} 10. h4
{[%clk 0:02:49]} 10... h6 {[%clk 0:02:35.3]} 11. Re1 {[%clk 0:02:45.6]} 11...
Kh7 {[%clk 0:02:28.1]} 12. Nc2 {[%clk 0:02:44.1]} 12... b5 {[%clk 0:02:23.2]}
13. e5 {[%clk 0:02:43.4]} 13... Qc7 {[%clk 0:02:22.4]} 14. Bf4 {[%clk
0:02:41.6]} 14... Rb8 {[%clk 0:02:19.2]} 15. Rac1 {[%clk 0:02:39.8]} 15... a5
{[%clk 0:02:18.1]} 16. b3 {[%clk 0:02:33.5]} 16... Bb7 {[%clk 0:02:16.3]} 17. d4
{[%clk 0:02:23.6]} 17... c4 {[%clk 0:02:12.8]} 18. bxc4 {[%clk 0:02:20.9]} 18...
dxc4 {[%clk 0:02:09.4]} 19. Ne3 {[%clk 0:02:21.8]} 19... Rbd8 {[%clk 0:02:07.9]}
20. a4 {[%clk 0:02:17]} 20... Nd5 {[%clk 0:02:05.2]} 21. Nxd5 {[%clk 0:02:07.1]}
21... Rxd5 {[%clk 0:02:02.7]} 22. axb5 {[%clk 0:02:07.3]} 22... Rxb5 {[%clk
0:02:02.7]} 23. Qxc4 {[%clk 0:02:02.2]} 23... Qb6 {[%clk 0:02:02.8]} 24. h5
{[%clk 0:01:57.5]} 24... g5 {[%clk 0:01:53.6]} 25. Qd3+ {[%clk 0:01:55.3]} 25...
Kh8 {[%clk 0:01:53.2]} 26. Bxg5 {[%clk 0:01:55.9]} 26... a4 {[%clk 0:01:38.4]}
27. Bf4 {[%clk 0:01:47.2]} 27... Rb2 {[%clk 0:01:30.5]} 28. Qe3 {[%clk
0:01:42.8]} 28... Ne7 {[%clk 0:01:28]} 29. Bxh6 {[%clk 0:01:33]} 29... Nf5
{[%clk 0:01:26.9]} 30. Bxg7+ {[%clk 0:01:33]} 30... Kxg7 {[%clk 0:01:27.8]} 31.
Qg5+ {[%clk 0:01:29.8]} 31... Kh7 {[%clk 0:01:27.9]} 32. Qf6 {[%clk 0:01:14.3]}
32... Rg8 {[%clk 0:01:23.6]} 33. Ng5+ {[%clk 0:00:58.1]} 33... Rxg5 {[%clk
0:01:23.1]} 34. Qxg5 {[%clk 0:00:59]} 34... Bxg2 {[%clk 0:01:21]} 35. Kxg2
{[%clk 0:00:59.9]} 35... a3 {[%clk 0:01:20.4]} 36. Qf6 {[%clk 0:00:37.7]} 36...
Qc6+ {[%clk 0:01:20.2]} 37. Kg1 {[%clk 0:00:35.6]} 37... Qf3 {[%clk 0:01:19.7]}
38. Qxf7+ {[%clk 0:00:34.4]} 38... Kh8 {[%clk 0:01:19.9]} 39. Qe8+ {[%clk
0:00:30]} 39... Kh7 {[%clk 0:01:19.3]} 40. Qg6+ {[%clk 0:00:30.5]} 40... Kh8
{[%clk 0:01:19.4]} 41. Rf1 {[%clk 0:00:27.9]} 41... a2 {[%clk 0:01:19.3]} 42. h6
{[%clk 0:00:23.8]} 42... Rb7 {[%clk 0:01:09.5]} 43. Qxe6 {[%clk 0:00:17.7]}
43... Rb8 {[%clk 0:00:56]} 44. Qf6+ {[%clk 0:00:15.7]} 44... Kh7 {[%clk
0:00:55.4]} 45. Qf7+ {[%clk 0:00:15.3]} 45... Kh8 {[%clk 0:00:55.4]} 46. Qxa2
{[%clk 0:00:14.9]} 46... Rg8 {[%clk 0:00:54.6]} 47. Rc2 {[%clk 0:00:08.9]} 47...
Nh4 {[%clk 0:00:53.2]} 48. Qxg8+ {[%clk 0:00:06.7]} 48... Kxg8 {[%clk
0:00:52.9]} 49. gxh4 {[%clk 0:00:07.6]} 49... Qg4+ {[%clk 0:00:50.6]} 50. Kh2
{[%clk 0:00:07.8]} 50... Qxh4+ {[%clk 0:00:50.6]} 51. Kg2 {[%clk 0:00:08.2]}
51... Qg4+ {[%clk 0:00:50.9]} 52. Kh1 {[%clk 0:00:08.6]} 52... Qh5+ {[%clk
0:00:50.7]} 53. Kg2 {[%clk 0:00:08.4]} 53... Qg6+ {[%clk 0:00:51.1]} 54. Kf3
{[%clk 0:00:08.1]} 54... Qxc2 {[%clk 0:00:52]} 55. Rg1+ {[%clk 0:00:08.3]} 55...
Kh7 {[%clk 0:00:51.7]} 56. Rg3 {[%clk 0:00:08.6]} 56... Qxc3+ {[%clk 0:00:51.6]}
57. Kg2 {[%clk 0:00:08.8]} 57... Qxd4 {[%clk 0:00:51.7]} 58. Re3 {[%clk
0:00:09.7]} 58... Qd5+ {[%clk 0:00:51]} 59. Kg3 {[%clk 0:00:09.8]} 59... Qe6
{[%clk 0:00:51.1]} 60. f4 {[%clk 0:00:08.2]} 60... Kxh6 {[%clk 0:00:51.3]} 61.
Kf3 {[%clk 0:00:08.5]} 61... Kh5 {[%clk 0:00:51.5]} 62. Kg3 {[%clk 0:00:06.3]}
62... Qg4+ {[%clk 0:00:51.4]} 63. Kf2 {[%clk 0:00:05.8]} 63... Qxf4+ {[%clk
0:00:51.7]} 64. Ke2 {[%clk 0:00:06.7]} 64... Qf7 {[%clk 0:00:51]} 65. e6 {[%clk
0:00:07.6]} 65... Qe7 {[%clk 0:00:51.1]} 66. Kd3 {[%clk 0:00:08.1]} 66... Kg5
{[%clk 0:00:51.3]} 67. Ke2 {[%clk 0:00:06.7]} 67... Kf4 {[%clk 0:00:51.2]} 68.
Rf3+ {[%clk 0:00:07.1]} 68... Kg4 {[%clk 0:00:51.5]} 69. Re3 {[%clk 0:00:07.2]}
69... Kg5 {[%clk 0:00:50.6]} 70. Kd3 {[%clk 0:00:07]} 70... Qa3+ {[%clk
0:00:48.5]} 71. Ke2 {[%clk 0:00:06.8]} 71... Qe7 {[%clk 0:00:48.7]} 72. Kd3
{[%clk 0:00:06.8]} 72... Kf6 {[%clk 0:00:48.8]} 73. Rf3+ {[%clk 0:00:06.2]}
73... Kg6 {[%clk 0:00:48.5]} 74. Re3 {[%clk 0:00:06.6]} 74... Kg7 {[%clk
0:00:48.2]} 75. Ke2 {[%clk 0:00:06.6]} 75... Kf8 {[%clk 0:00:47]} 76. Rf3+
{[%clk 0:00:06.5]} 76... Ke8 {[%clk 0:00:47.4]} 77. Re3 {[%clk 0:00:07.4]} 77...
Qg5 {[%clk 0:00:46.7]} 78. Kd3 {[%clk 0:00:07.3]} 78... Ke7 {[%clk 0:00:46.9]}
79. Ke2 {[%clk 0:00:07.1]} 79... Qb5+ {[%clk 0:00:44.8]} 80. Kf3 {[%clk
0:00:07]} 80... Qd5+ {[%clk 0:00:44.3]} 81. Ke2 {[%clk 0:00:07.2]} 81... Qa2+
{[%clk 0:00:44.5]} 82. Kf3 {[%clk 0:00:07.4]} 82... Qd2 {[%clk 0:00:45.1]} 83.
Kf4 {[%clk 0:00:06.8]} 83... Kf6 {[%clk 0:00:44.3]} 84. e7 {[%clk 0:00:06.3]}
84... Qd4+ {[%clk 0:00:43.5]} 85. Kf3 {[%clk 0:00:05.8]} 85... Qd5+ {[%clk
0:00:43.5]} 86. Kf2 {[%clk 0:00:05.8]} 86... Qd2+ {[%clk 0:00:43]} 87. Kf3
{[%clk 0:00:05.8]} 87... Qd1+ {[%clk 0:00:42.8]} 88. Kf4 {[%clk 0:00:05.3]}
88... Qf1+ {[%clk 0:00:42.8]} 89. Kg3 {[%clk 0:00:04.8]} 89... Qg1+ {[%clk
0:00:42.9]} 90. Kf3 {[%clk 0:00:04.9]} 90... Qh1+ {[%clk 0:00:42.4]} 91. Ke2
{[%clk 0:00:05]} 91... Qh2+ {[%clk 0:00:42.2]} 92. Kd3 {[%clk 0:00:04.9]} 92...
Qd6+ {[%clk 0:00:42.6]} 93. Ke2 {[%clk 0:00:05]} 93... Qa6+ {[%clk 0:00:42.8]}
94. Kf2 {[%clk 0:00:05]} 94... Qa2+ {[%clk 0:00:40]} 95. Re2 {[%clk 0:00:05.1]}
95... Qa7+ {[%clk 0:00:39.4]} 96. Kg3 {[%clk 0:00:05.3]} 96... Qc7+ {[%clk
0:00:38.3]} 97. Kg2 {[%clk 0:00:05.1]} 97... Qc6+ {[%clk 0:00:38.5]} 98. Kf1
{[%clk 0:00:04.9]} 98... Qe8 {[%clk 0:00:39.4]} 99. Rf2+ {[%clk 0:00:04.6]}
99... Kg5 {[%clk 0:00:39.6]} 100. Rg2+ {[%clk 0:00:04.7]} 100... Kf4 {[%clk
0:00:39.9]} 101. Rf2+ {[%clk 0:00:04.4]} 101... Ke3 {[%clk 0:00:40.3]} 102. Re2+
{[%clk 0:00:04.9]} 102... Kd3 {[%clk 0:00:40.7]} 103. Ke1 {[%clk 0:00:04.9]}
103... Kc3 {[%clk 0:00:40.3]} 104. Re3+ {[%clk 0:00:04.5]} 104... Kd4 {[%clk
0:00:40.4]} 105. Ke2 {[%clk 0:00:05.1]} 105... Qb5+ {[%clk 0:00:40.2]} 106. Kf3
{[%clk 0:00:04.9]} 106... Qe8 {[%clk 0:00:41.1]} 107. Re4+ {[%clk 0:00:03.7]}
107... Kd3 {[%clk 0:00:41.1]} 108. Re3+ {[%clk 0:00:04]} 108... Kd2 {[%clk
0:00:41.5]} 109. Re2+ {[%clk 0:00:04.3]} 109... Kd1 {[%clk 0:00:40.8]} 110. Re3
{[%clk 0:00:05.2]} 110... Qc6+ {[%clk 0:00:41]} 111. Re4 {[%clk 0:00:04.6]}
111... Qf6+ {[%clk 0:00:41.2]} 112. Ke3 {[%clk 0:00:04.9]} 112... Qb6+ {[%clk
0:00:41.4]} 113. Kf4 {[%clk 0:00:05.3]} 113... Qc7+ {[%clk 0:00:41.1]} 114. Re5
{[%clk 0:00:05.3]} 114... Qc4+ {[%clk 0:00:40.7]} 115. Kf5 {[%clk 0:00:05.5]}
115... Qf7+ {[%clk 0:00:40.9]} 116. Ke4 {[%clk 0:00:05.5]} 116... Qe8 {[%clk
0:00:41.3]} 117. Re6 {[%clk 0:00:05.2]} 117... Kd2 {[%clk 0:00:42.2]} 118. Ke5
{[%clk 0:00:05.5]} 118... Kd3 {[%clk 0:00:42.2]} 119. Rd6+ {[%clk 0:00:05.7]}
119... Ke3 {[%clk 0:00:41.4]} 120. Ke6 {[%clk 0:00:06.6]} 120... Ke4 {[%clk
0:00:40.7]} 121. Rd8 {[%clk 0:00:05.9]} 121... Qg6+ {[%clk 0:00:40.5]} 122. Kd7
{[%clk 0:00:05.4]} 122... Kd5 {[%clk 0:00:39.2]} 123. e8=Q {[%clk 0:00:05.1]}
123... Qc6+ {[%clk 0:00:38.8]} 124. Ke7+ {[%clk 0:00:05.5]} 124... Kc4 {[%clk
0:00:37.6]} 125. Qxc6+ {[%clk 0:00:05.6]} 1-0

[Event "*** SCC Grand Prix: Titled Tuesday Blitz"]
[Site "Chess.com"]
[Date "2020.08.11"]
[Round "8"]
[White "annamaja"]
[Black "NoboaKevin1999"]
[Result "1/2-1/2"]
[WhiteElo "2261"]
[BlackElo "2410"]
[TimeControl "180+1"]
[EndTime "11:38:02 PDT"]
[Termination "Game drawn by 50-move rule"]

1. e4 {[%clk 0:03:00.9]} 1... e6 {[%clk 0:02:59.1]} 2. d4 {[%clk 0:02:58.7]}
2... d5 {[%clk 0:03:00]} 3. Nd2 {[%clk 0:02:54.8]} 3... c5 {[%clk 0:02:59.1]} 4.
exd5 {[%clk 0:02:52.1]} 4... exd5 {[%clk 0:02:58.7]} 5. Ngf3 {[%clk 0:02:52.1]}
5... Nc6 {[%clk 0:02:54.5]} 6. Bb5 {[%clk 0:02:49.2]} 6... Qe7+ {[%clk
0:02:52.8]} 7. Qe2 {[%clk 0:02:43.1]} 7... Qxe2+ {[%clk 0:02:49.3]} 8. Kxe2
{[%clk 0:02:39.9]} 8... cxd4 {[%clk 0:02:49.1]} 9. Nxd4 {[%clk 0:02:31]} 9...
Bd7 {[%clk 0:02:46]} 10. N2f3 {[%clk 0:02:25.1]} 10... Bd6 {[%clk 0:02:45.6]}
11. Re1 {[%clk 0:02:21.2]} 11... Nge7 {[%clk 0:02:44.3]} 12. Kf1 {[%clk
0:02:13.1]} 12... O-O {[%clk 0:02:42.3]} 13. c3 {[%clk 0:02:05.3]} 13... Rfe8
{[%clk 0:02:40.2]} 14. Bg5 {[%clk 0:02:02.6]} 14... f6 {[%clk 0:02:39.7]} 15.
Bh4 {[%clk 0:01:56.4]} 15... Kf7 {[%clk 0:02:37.2]} 16. Bg3 {[%clk 0:01:54.5]}
16... Bxg3 {[%clk 0:02:36.3]} 17. hxg3 {[%clk 0:01:55.4]} 17... Rac8 {[%clk
0:02:31.6]} 18. Re3 {[%clk 0:01:49.5]} 18... a6 {[%clk 0:02:12.4]} 19. Ba4
{[%clk 0:01:43.7]} 19... g5 {[%clk 0:02:03.6]} 20. Nxc6 {[%clk 0:01:07.2]} 20...
bxc6 {[%clk 0:01:57.9]} 21. Nd4 {[%clk 0:01:02.8]} 21... Ng6 {[%clk 0:01:56.9]}
22. Rxe8 {[%clk 0:01:00.4]} 22... Bxe8 {[%clk 0:01:57.1]} 23. Nb3 {[%clk
0:00:54.1]} 23... c5 {[%clk 0:01:54.4]} 24. Bxe8+ {[%clk 0:00:53.7]} 24... Kxe8
{[%clk 0:01:54.2]} 25. Rd1 {[%clk 0:00:50.8]} 25... Ne7 {[%clk 0:01:53.1]} 26.
Ke2 {[%clk 0:00:44.6]} 26... Kd7 {[%clk 0:01:51.3]} 27. Na5 {[%clk 0:00:34.9]}
27... Ke6 {[%clk 0:01:34.8]} 28. Kf3 {[%clk 0:00:25.8]} 28... Ng6 {[%clk
0:01:33]} 29. Re1+ {[%clk 0:00:15.3]} 29... Ne5+ {[%clk 0:01:31]} 30. Ke2 {[%clk
0:00:15.6]} 30... Rb8 {[%clk 0:01:18.6]} 31. Nb3 {[%clk 0:00:12.8]} 31... Kd6
{[%clk 0:01:17.5]} 32. Rb1 {[%clk 0:00:10.9]} 32... Nc4 {[%clk 0:01:15.7]} 33.
f4 {[%clk 0:00:09.5]} 33... gxf4 {[%clk 0:01:15]} 34. gxf4 {[%clk 0:00:09.7]}
34... Rg8 {[%clk 0:01:13.8]} 35. Kf3 {[%clk 0:00:09.2]} 35... a5 {[%clk
0:01:12.7]} 36. Rh1 {[%clk 0:00:06.5]} 36... a4 {[%clk 0:01:10.3]} 37. Nc1
{[%clk 0:00:05.6]} 37... Nxb2 {[%clk 0:01:04.9]} 38. Rxh7 {[%clk 0:00:05.9]}
38... Nd1 {[%clk 0:01:04.9]} 39. Ne2 {[%clk 0:00:04.2]} 39... Rb8 {[%clk
0:01:03.5]} 40. Ra7 {[%clk 0:00:04.2]} 40... Nb2 {[%clk 0:00:58.1]} 41. Ra6+
{[%clk 0:00:04.8]} 41... Ke7 {[%clk 0:00:58]} 42. f5 {[%clk 0:00:05.2]} 42...
Rb7 {[%clk 0:00:40]} 43. Nf4 {[%clk 0:00:05.5]} 43... d4 {[%clk 0:00:37.2]} 44.
cxd4 {[%clk 0:00:05.4]} 44... cxd4 {[%clk 0:00:36.9]} 45. Nd5+ {[%clk 0:00:06]}
45... Kd8 {[%clk 0:00:35.1]} 46. Nxf6 {[%clk 0:00:05.3]} 46... d3 {[%clk
0:00:32.1]} 47. Ne4 {[%clk 0:00:04.7]} 47... Rb4 {[%clk 0:00:27.7]} 48. Rd6+
{[%clk 0:00:04.2]} 48... Kc7 {[%clk 0:00:27.5]} 49. Rd5 {[%clk 0:00:03.7]} 49...
Nc4 {[%clk 0:00:19.5]} 50. f6 {[%clk 0:00:02.3]} 50... Kc6 {[%clk 0:00:13.5]}
51. Rd8 {[%clk 0:00:02.5]} 51... d2 {[%clk 0:00:11.3]} 52. Nxd2 {[%clk
0:00:02.2]} 52... Ne5+ {[%clk 0:00:11.7]} 53. Kf2 {[%clk 0:00:02.2]} 53... Rb2
{[%clk 0:00:10.1]} 54. f7 {[%clk 0:00:01.8]} 54... Nxf7 {[%clk 0:00:09.6]} 55.
Rd3 {[%clk 0:00:02.1]} 55... Ne5 {[%clk 0:00:09]} 56. Rc3+ {[%clk 0:00:02.5]}
56... Kb5 {[%clk 0:00:08.3]} 57. Ke1 {[%clk 0:00:03.2]} 57... Rxa2 {[%clk
0:00:08]} 58. Re3 {[%clk 0:00:03.6]} 58... Nc6 {[%clk 0:00:07.9]} 59. g4 {[%clk
0:00:03.7]} 59... Ra1+ {[%clk 0:00:07.6]} 60. Ke2 {[%clk 0:00:03.7]} 60... a3
{[%clk 0:00:08.1]} 61. g5 {[%clk 0:00:04]} 61... a2 {[%clk 0:00:08.2]} 62. Ra3
{[%clk 0:00:04]} 62... Kb4 {[%clk 0:00:07.8]} 63. Ra8 {[%clk 0:00:03.9]} 63...
Na5 {[%clk 0:00:07.9]} 64. Rb8+ {[%clk 0:00:02.9]} 64... Ka4 {[%clk 0:00:08]}
65. Ra8 {[%clk 0:00:02.9]} 65... Rg1 {[%clk 0:00:07.4]} 66. Nc4 {[%clk
0:00:02.5]} 66... a1=Q {[%clk 0:00:02.9]} 67. Rxa5+ {[%clk 0:00:02.6]} 67... Kb4
{[%clk 0:00:03.1]} 68. Rxa1 {[%clk 0:00:02.7]} 68... Rxa1 {[%clk 0:00:04]} 69.
Ne5 {[%clk 0:00:03.5]} 69... Kc5 {[%clk 0:00:03.2]} 70. Kf3 {[%clk 0:00:03.3]}
70... Kd5 {[%clk 0:00:02.9]} 71. Ng4 {[%clk 0:00:03.3]} 71... Ra3+ {[%clk
0:00:02.2]} 72. Kf4 {[%clk 0:00:02.9]} 72... Ke6 {[%clk 0:00:02.6]} 73. Ne3
{[%clk 0:00:03]} 73... Ra4+ {[%clk 0:00:02.9]} 74. Kf3 {[%clk 0:00:03.5]} 74...
Ke5 {[%clk 0:00:02.9]} 75. Kg3 {[%clk 0:00:03.8]} 75... Ra3 {[%clk 0:00:02.4]}
76. Kf3 {[%clk 0:00:04.3]} 76... Rb3 {[%clk 0:00:02.9]} 77. Kf2 {[%clk
0:00:04.1]} 77... Kf4 {[%clk 0:00:03.3]} 78. Nd5+ {[%clk 0:00:04.4]} 78... Kxg5
{[%clk 0:00:03.5]} 79. Ne3 {[%clk 0:00:04.1]} 79... Kf4 {[%clk 0:00:03.6]} 80.
Ng2+ {[%clk 0:00:04.8]} 80... Ke4 {[%clk 0:00:03.9]} 81. Ne1 {[%clk 0:00:04.4]}
81... Rb2+ {[%clk 0:00:03.9]} 82. Kf1 {[%clk 0:00:04.3]} 82... Ke3 {[%clk
0:00:03.6]} 83. Ng2+ {[%clk 0:00:04.9]} 83... Kf3 {[%clk 0:00:04]} 84. Ne1+
{[%clk 0:00:05.6]} 84... Kg3 {[%clk 0:00:04.4]} 85. Nd3 {[%clk 0:00:05.5]} 85...
Rd2 {[%clk 0:00:04.7]} 86. Ne1 {[%clk 0:00:05.4]} 86... Rf2+ {[%clk 0:00:04.8]}
87. Kg1 {[%clk 0:00:05.4]} 87... Rf8 {[%clk 0:00:05.7]} 88. Nd3 {[%clk
0:00:04.4]} 88... Re8 {[%clk 0:00:05.6]} 89. Kf1 {[%clk 0:00:03.9]} 89... Kf3
{[%clk 0:00:05.6]} 90. Ne1+ {[%clk 0:00:02]} 90... Ke3 {[%clk 0:00:05.7]} 91.
Ng2+ {[%clk 0:00:02.3]} 91... Kd2 {[%clk 0:00:05.3]} 92. Kf2 {[%clk 0:00:02.5]}
92... Rf8+ {[%clk 0:00:05.7]} 93. Kg3 {[%clk 0:00:02.9]} 93... Ke2 {[%clk
0:00:06.4]} 94. Nf4+ {[%clk 0:00:03]} 94... Ke3 {[%clk 0:00:07.3]} 95. Ng2+
{[%clk 0:00:03.5]} 95... Ke4 {[%clk 0:00:07.6]} 96. Kg4 {[%clk 0:00:03.2]} 96...
Rg8+ {[%clk 0:00:07.6]} 97. Kh3 {[%clk 0:00:03.9]} 97... Rg7 {[%clk 0:00:07]}
98. Nh4 {[%clk 0:00:03.6]} 98... Kf4 {[%clk 0:00:06.7]} 99. Ng2+ {[%clk
0:00:03.3]} 99... Kf3 {[%clk 0:00:07]} 100. Nh4+ {[%clk 0:00:04]} 100... Kf2
{[%clk 0:00:07.3]} 101. Kh2 {[%clk 0:00:03.9]} 101... Rg3 {[%clk 0:00:07.5]}
102. Nf5 {[%clk 0:00:02.9]} 102... Rg5 {[%clk 0:00:05.2]} 103. Nh4 {[%clk
0:00:03.2]} 103... Rg3 {[%clk 0:00:05.1]} 104. Nf5 {[%clk 0:00:03.4]} 104... Ra3
{[%clk 0:00:05.4]} 105. Nh4 {[%clk 0:00:03.5]} 105... Rb3 {[%clk 0:00:05.6]}
106. Nf5 {[%clk 0:00:03.2]} 106... Rb4 {[%clk 0:00:05.7]} 107. Kh3 {[%clk
0:00:03.1]} 107... Kf3 {[%clk 0:00:05]} 108. Nh4+ {[%clk 0:00:03.2]} 108... Kf2
{[%clk 0:00:04.8]} 109. Nf5 {[%clk 0:00:03.5]} 109... Rb3+ {[%clk 0:00:04.8]}
110. Kh2 {[%clk 0:00:03.8]} 110... Rb8 {[%clk 0:00:04]} 111. Nh4 {[%clk
0:00:02.6]} 111... Rg8 {[%clk 0:00:03.3]} 112. Kh3 {[%clk 0:00:03.2]} 112...
Rg3+ {[%clk 0:00:03.1]} 113. Kh2 {[%clk 0:00:03.4]} 113... Rd3 {[%clk
0:00:03.9]} 114. Nf5 {[%clk 0:00:03.5]} 114... Rd5 {[%clk 0:00:02.7]} 115. Nh4
{[%clk 0:00:03.8]} 115... Rd4 {[%clk 0:00:02.1]} 116. Kh3 {[%clk 0:00:04]}
116... Ra4 {[%clk 0:00:01.9]} 117. Nf5 {[%clk 0:00:04.4]} 117... Kf3 {[%clk
0:00:02.2]} 118. Nh4+ {[%clk 0:00:04.5]} 118... Kf4 {[%clk 0:00:02.9]} 119. Ng2+
{[%clk 0:00:04.5]} 119... Kg5 {[%clk 0:00:03.8]} 120. Kg3 {[%clk 0:00:04.9]}
120... Ra3+ {[%clk 0:00:04.7]} 121. Kf2 {[%clk 0:00:05.4]} 121... Kg4 {[%clk
0:00:05.1]} 122. Ne3+ {[%clk 0:00:05.5]} 122... Kf4 {[%clk 0:00:06]} 123. Ng2+
{[%clk 0:00:05.8]} 123... Ke4 {[%clk 0:00:06.9]} 124. Ke2 {[%clk 0:00:05.7]}
124... Ra2+ {[%clk 0:00:07.1]} 125. Kf1 {[%clk 0:00:06]} 125... Rb2 {[%clk
0:00:07.8]} 126. Kg1 {[%clk 0:00:05.2]} 126... Kf3 {[%clk 0:00:07.9]} 127. Ne1+
{[%clk 0:00:05.7]} 127... Kg3 {[%clk 0:00:08.1]} 128. Kf1 {[%clk 0:00:05.8]}
128... Rf2+ {[%clk 0:00:08.6]} 1/2-1/2